{"text_format":"1","workbook":"xlsx","n_sheets":4,"sheets":["Kennzahlen","Präferenzen","Aktiv-Passiv","Portfolio "],"not_rendered":{"charts":1,"images":0,"macros":1,"external_links":0,"defined_names":3,"comments":0,"pivot_tables":0},"unopened":[],"bounds":{"document_bytes":16777216,"sheet_cells":100000,"rows_first":2000,"rows_last":500,"rows_between":2000,"halvings":0,"cell_chars":16384,"cell_head_chars":4096},"cells_cut":0,"cells_raw":0,"read":"whole","date_system":"1900"}

{"sheet":"Kennzahlen","index":0,"n_rows":13,"n_cols":6,"rows_kept":13,"cut":false,"hidden":false,"merged":[[1,5,5,10],[12,1,12,3],[8,3,8,5]]}
[]
[null,"Nr.","Kennzahl","Beschreibung",null,"Tragen Sie in die Spalte 'Kennzahl' die Kennzahlen ein, die Sie bewerten wollen. Diese werden in die anderen Tabellenblätter übernommen. Die Spalte 'Beschreibung' können Sie nutzen, um zusätzliche Informationen für die Kennzahlen zu notieren."]
[null,1]
[null,2]
[null,3]
[null,4]
[null,5]
[]
[null,null,null,"Klicken Sie hier, um die ausfüllbaren Zellen aller Tabellenblätter zu löschen."]
[]
[]
[]
[null,"Ausfüllhilfe: \n1) Tragen Sie in die Spalte 'Kennzahl' die Kennzahlen ein, die Sie bewerten wollen. Diese werden in die anderen Tabellenblätter übernommen. Die Spalte 'Beschreibung' können Sie nutzen, um zusätzliche Informationen für die Kennzahlen zu notieren.\n2) Gehen Sie auf das Tabellenblatt 'Präferenzen' und bewerten Sie dort, die Wichtigkeit der Kennzahlen.\n3) Im Tabellenblatt 'Aktiv-Passiv' bewerten Sie die Beeinflussung der Kennzahlen untereinander. Hier zeigt sich die Dynamik in Ihrem Kennzahlensystem.\n4) Das Tabellenblatt 'Portfolio' fasst die Ergebnisse zusammen und visualisiert diese. Hier sind keine Eingaben von Ihnen nötig."]

{"sheet":"Präferenzen","index":1,"n_rows":10,"n_cols":10,"rows_kept":10,"cut":false,"hidden":false,"merged":[[3,8,3,9],[1,1,1,2],[2,1,2,2],[9,1,9,2]]}
[]
[null,"Präferenzmatrix: "]
[null,"\nDie Präferenzenmatrix hilft Ihnen festzustellen, welche Kennzahl objektiv am wichtigsten ist. Tragen Sie oberhalb der Diagonale die Werte ein indem Sie sich folgende Frage stellen:\nIst die Kennzahl der Zeile wichtiger als die Kennzahl der Spalte?\nBeantworten Sie die Frage mit \"ja\", dann tragen Sie eine '1' in die Zelle ein, ansonsten eine '0'.\nDie Zellen unterhalb der Diagonale werden automatisch aufgefüllt.",null,{"$f":"C5","v":""},{"$f":"C6","v":""},{"$f":"C7","v":""},{"$f":"C8","v":""},{"$f":"C9","v":""}]
[null,"Nr. ","Kennzahl",{"$f":"B5","v":1},{"$f":"B6","v":2},{"$f":"B7","v":3},{"$f":"B8","v":4},{"$f":"B9","v":5},"Zeilensumme"]
[null,{"$f":"IF(Kennzahlen!B3=\"\",\"\",Kennzahlen!B3)","v":1},{"$f":"IF(Kennzahlen!C3=\"\",\"\",Kennzahlen!C3)","v":""},"x",null,null,null,null,{"$f":"SUM(D5:H5)","v":0},{"$f":"IF(I10=0,\"\",(I5/I10))","v":""}]
[null,{"$f":"IF(Kennzahlen!B4=\"\",\"\",Kennzahlen!B4)","v":2},{"$f":"IF(Kennzahlen!C4=\"\",\"\",Kennzahlen!C4)","v":""},{"$f":"IF(ISBLANK(E5),\"\",IF(E5=1,0,1))","v":""},"x",null,null,null,{"$f":"SUM(D6:H6)","v":0},{"$f":"IF(I10=0,\"\",(I6/I10))","v":""}]
[null,{"$f":"IF(Kennzahlen!B5=\"\",\"\",Kennzahlen!B5)","v":3},{"$f":"IF(Kennzahlen!C5=\"\",\"\",Kennzahlen!C5)","v":""},{"$f":"IF(ISBLANK(F5),\"\",IF(F5=1,0,1))","v":""},{"$f":"IF(ISBLANK(F6),\"\",IF(F6=1,0,1))","v":""},"x",null,null,{"$f":"SUM(D7:H7)","v":0},{"$f":"IF(I10=0,\"\",(I7/I10))","v":""}]
[null,{"$f":"IF(Kennzahlen!B6=\"\",\"\",Kennzahlen!B6)","v":4},{"$f":"IF(Kennzahlen!C6=\"\",\"\",Kennzahlen!C6)","v":""},{"$f":"IF(ISBLANK(G5),\"\",IF(G5=1,0,1))","v":""},{"$f":"IF(ISBLANK(G6),\"\",IF(G6=1,0,1))","v":""},{"$f":"IF(ISBLANK(G7),\"\",IF(G7=1,0,1))","v":""},"x",null,{"$f":"SUM(D8:H8)","v":0},{"$f":"IF(I10=0,\"\",(I8/I10))","v":""}]
[null,{"$f":"IF(Kennzahlen!B7=\"\",\"\",Kennzahlen!B7)","v":5},{"$f":"IF(Kennzahlen!C7=\"\",\"\",Kennzahlen!C7)","v":""},{"$f":"IF(ISBLANK(H5),\"\",IF(H5=1,0,1))","v":""},{"$f":"IF(ISBLANK(H6),\"\",IF(H6=1,0,1))","v":""},{"$f":"IF(ISBLANK(H7),\"\",IF(H7=1,0,1))","v":""},{"$f":"IF(ISBLANK(H8),\"\",IF(H8=1,0,1))","v":""},"x",{"$f":"SUM(D9:H9)","v":0},{"$f":"IF(I10=0,\"\",(I9/I10))","v":""}]
[null,"Spaltensumme",null,{"$f":"SUM(D5:D9)","v":0},0,0,0,0,0,0]

{"sheet":"Aktiv-Passiv","index":2,"n_rows":14,"n_cols":10,"rows_kept":14,"cut":false,"hidden":false,"merged":[[3,8,3,9],[1,1,1,2],[2,1,2,2],[9,1,10,2]]}
[]
[null,"Aktiv-Passiv-Matrix: "]
[null,"\nDie Aktiv-Passiv-Matrix ist eine Methode die dabei unterstützt die Beeinflussung der Kennzahlen untereinander festzustellen. Stellen Sie sich die Frage, wie die Kennzahl der Zeile, jene der Spalte beeinflusst. Dabei ist es unerheblich, ob die Beeinflussung negativ oder positiv ist. In die Zelle tragen Sie einen Wert zwischen '0' und '3' ein. ",null,{"$f":"C5","v":""},{"$f":"C6","v":""},{"$f":"C7","v":""},{"$f":"C8","v":""},{"$f":"C9","v":""}]
[null,"Nr. ","Kennzahl \n(Zeile ==>  wirkt auf ==> Spalte) ",{"$f":"B5","v":1},{"$f":"B6","v":2},{"$f":"B7","v":3},{"$f":"B8","v":4},{"$f":"B9","v":5},"Aktivstärke"]
[null,{"$f":"IF(Kennzahlen!B3=\"\",\"\",Kennzahlen!B3)","v":1},{"$f":"IF(Kennzahlen!C3=\"\",\"\",Kennzahlen!C3)","v":""},"x",null,null,null,null,{"$f":"SUM(D5:H5)","v":0},{"$f":"IFERROR(I5/$H$14,\"\")","v":""}]
[null,{"$f":"IF(Kennzahlen!B4=\"\",\"\",Kennzahlen!B4)","v":2},{"$f":"IF(Kennzahlen!C4=\"\",\"\",Kennzahlen!C4)","v":""},null,"x",null,null,null,{"$f":"SUM(D6:H6)","v":0},{"$f":"IFERROR(I6/$H$14,\"\")","v":""}]
[null,{"$f":"IF(Kennzahlen!B5=\"\",\"\",Kennzahlen!B5)","v":3},{"$f":"IF(Kennzahlen!C5=\"\",\"\",Kennzahlen!C5)","v":""},null,null,"x",null,null,{"$f":"SUM(D7:H7)","v":0},{"$f":"IFERROR(I7/$H$14,\"\")","v":""}]
[null,{"$f":"IF(Kennzahlen!B6=\"\",\"\",Kennzahlen!B6)","v":4},{"$f":"IF(Kennzahlen!C6=\"\",\"\",Kennzahlen!C6)","v":""},null,null,null,"x",null,{"$f":"SUM(D8:H8)","v":0},{"$f":"IFERROR(I8/$H$14,\"\")","v":""}]
[null,{"$f":"IF(Kennzahlen!B7=\"\",\"\",Kennzahlen!B7)","v":5},{"$f":"IF(Kennzahlen!C7=\"\",\"\",Kennzahlen!C7)","v":""},null,null,null,null,"x",{"$f":"SUM(D9:H9)","v":0},{"$f":"IFERROR(I9/$H$14,\"\")","v":""}]
[null,"Passivstärke",null,{"$f":"SUM(D5:D9)","v":0},{"$f":"SUM(E5:E9)","v":0},{"$f":"SUM(F5:F9)","v":0},{"$f":"SUM(G5:G9)","v":0},{"$f":"SUM(H5:H9)","v":0}]
[null,null,null,{"$f":"IFERROR(D10/$H$13,\"\")","v":""},"","","",""]
[]
[null,null,null,"Maximalwert Passiv",null,null,null,{"$f":"MAX(D10:H10)","v":0}]
[null,null,null,"Maximalwert Aktiv",null,null,null,{"$f":"MAX(I5:I9)","v":0}]

{"sheet":"Portfolio ","index":3,"n_rows":31,"n_cols":19,"rows_kept":31,"cut":false,"hidden":false,"merged":[[1,1,1,2],[13,1,23,5],[3,19,23,19],[4,18,29,18],[30,7,30,12],[11,3,11,4]]}
[]
[null,"Aktiv-Passiv-Portfolio"]
[]
[null,"Nr. ","Kennzahl","Passiv","Aktiv","Präferenz","Berechnung"]
[null,{"$f":"IF(Kennzahlen!B3=\"\",\"\",Kennzahlen!B3)","v":1},{"$f":"IF(Kennzahlen!C3=\"\",\"\",Kennzahlen!C3)","v":""},{"$f":"'Aktiv-Passiv'!D11","v":""},{"$f":"'Aktiv-Passiv'!J5","v":""},{"$f":"Präferenzen!J5","v":""},{"$f":"IF(F5*$F12=0,0.01,F5*$F12)","v":{"$error":"#VALUE!"}},null,null,null,null,null,null,null,null,null,null,null,"Die Aktivstärke gibt an, wie stark eine Kennzahl andere beeinflusst."]
[null,{"$f":"IF(Kennzahlen!B4=\"\",\"\",Kennzahlen!B4)","v":2},{"$f":"IF(Kennzahlen!C4=\"\",\"\",Kennzahlen!C4)","v":""},{"$f":"'Aktiv-Passiv'!E11","v":""},{"$f":"'Aktiv-Passiv'!J6","v":""},{"$f":"Präferenzen!J6","v":""},{"$f":"IF(F6*$F12=0,0.01,F6*$F12)","v":{"$error":"#VALUE!"}}]
[null,{"$f":"IF(Kennzahlen!B5=\"\",\"\",Kennzahlen!B5)","v":3},{"$f":"IF(Kennzahlen!C5=\"\",\"\",Kennzahlen!C5)","v":""},{"$f":"'Aktiv-Passiv'!F11","v":""},{"$f":"'Aktiv-Passiv'!J7","v":""},{"$f":"Präferenzen!J7","v":""},{"$f":"IF(F7*$F12=0,0.01,F7*$F12)","v":{"$error":"#VALUE!"}}]
[null,{"$f":"IF(Kennzahlen!B6=\"\",\"\",Kennzahlen!B6)","v":4},{"$f":"IF(Kennzahlen!C6=\"\",\"\",Kennzahlen!C6)","v":""},{"$f":"'Aktiv-Passiv'!G11","v":""},{"$f":"'Aktiv-Passiv'!J8","v":""},{"$f":"Präferenzen!J8","v":""},{"$f":"IF(F8*$F12=0,0.01,F8*$F12)","v":{"$error":"#VALUE!"}}]
[null,{"$f":"IF(Kennzahlen!B7=\"\",\"\",Kennzahlen!B7)","v":5},{"$f":"IF(Kennzahlen!C7=\"\",\"\",Kennzahlen!C7)","v":""},{"$f":"'Aktiv-Passiv'!H11","v":""},{"$f":"'Aktiv-Passiv'!J9","v":""},{"$f":"Präferenzen!J9","v":""},{"$f":"IF(F9*$F12=0,0.01,F9*$F12)","v":{"$error":"#VALUE!"}}]
[null,null,null,1,1,null,1]
[]
[null,null,null,"Skalierung Blasengröße",null,1]
[]
[null,"Interpretationshilfe:\nDas Aktiv-Passiv-Portfolio stellt die Ergebnisse Ihrer Bewertungen graphisch dar und klassifiziert die Kennzahlen. Die Größe der Blase spiegelt das Ergebnis der Präferenzenbewertung wider. Sie zeigt die Wichtigkeit der Kennzahlen im Vergleich untereinander. Mit der Zahl 'Skalierung Blasengröße' können Sie die Größe verändern.\nDie Aktiv- und Passivsumme ordnet die Kennzahl zur weiteren Interpretation ein. Kennzahlen mit hoher Aktivstärke (Quadrant II) haben eine großen Einfluss auf das System. Kennzahlen mit einer hohen Passivstärke (Quadrant III) sind Ergebnisgrößen die von anderen Kennzahlen beeinflusst werden. Vorallem Finanzkennzahlen finden sich oft dort. Zentrale Kennzahlen sind in Quadrant IV, während so genannte ruhende Kennzahlen in Quadrant I zu finden sind. Diese interagieren kaum mit dem restlichen System und sollte kritisch hinterfragt werden."]
[]
[]
[]
[]
[]
[]
[]
[]
[]
[]
[]
[]
[]
[]
[]
[]
[null,null,null,null,null,null,null,"Die Passivstärke gibt an, wie stark eine Kennzahl beeinflusst wird."]